Cogmind - Beta 16 @@@ ROGUE MODE // 2026.01.16 @ 17:28:10 Player: FR-13D Result: Destroyed by Striker with Plasma Lance Performance ------------- Evolutions (7) 3500 Regions Visited (17) 3400 Robots Destroyed (126) 630 Value Destroyed (4389) 4389 Prototype IDs (38) 760 Alien Tech Used (0) 0 Bonus (4494) 4494 TOTAL SCORE: 17173 Bonus ------- Triggered Max Security 1000 Follower Combat Kills 440 Aligned with FarCom 300 Met Warlord at Base 500 MAIN.C Attacked Warlord 500 Warlord Defense Kills 1254 Scanned by Researcher 500 Cogmind --------- Core Integrity 0/1300 Matter 300/300 Energy 100/100 System Corruption 8% Temperature Cool (0) Movement Core (50) Location -3/Testing Parts ------- > --- POWER (3) -------- (None) > --- PROPULSION (8) --- (None) > --- UTILITY (8) ------ Advanced Targeting Computer > --- WEAPON (2) ------- (None) > --- INVENTORY (5) ---- Energy Well (350) Advanced Reaction Control System Long-range Proton Cannon Peak State ------------ > --- POWER ------------ Micro Fission Core Micro Fission Core > --- PROPULSION ------- Improved Flight Unit Improved Flight Unit Improved Flight Unit Xenon Bombardment Thruster Field Propulsion Drive Field Propulsion Array Improved Diametric Drive > --- UTILITY ---------- Advanced Power Amplifier Improved Cryofiber Web Large Storage Unit Advanced Weight Redist. System Advanced Targeting Computer Improved Propulsion Shielding Improved Propulsion Shielding Makeshift Hacking Suite > --- WEAPON ----------- Disintegrator > --- INVENTORY -------- Micro Fission Core Centrium Wheel Makeshift Flight Unit Advanced Heat Sink Energy Well Advanced Sensor Array Advanced Reaction Control System Improved Utility Shielding Improved Utility Shielding Long-range Proton Cannon Latent Energy Streamer Matter Neutralizer Heavy Shock Bomb Launcher Improved Plasma Cutter Heavy Hammer [Rating: 117] Favorites ----------- Power Improved Ion Engine Engine Improved Ion Engine Power Core Micro Fission Core Reactor Fusion Reactor Propulsion Wheel Treads Light Treads Wheel Wheel Flight Unit Improved Flight Unit Utility High-capacity Storage Unit Device Advanced Heat Sink Storage High-capacity Storage Unit Processor Improved Targeting Computer Hackware Makeshift Hacking Suite Protection Improved Medium Armor Plating Weapon Light Cannon Energy Gun Advanced Beam Rifle Energy Cannon Phase Cannon Ballistic Gun Assault Rifle Ballistic Cannon Light Cannon Launcher Grenade Launcher Special Weapon Mining Laser Impact Weapon Heavy Hammer Special Melee Weapon Dirty Datajack Build | -11 -10 -10 -9 -9 -9 -8 -8 -7 -6 -5 -5 -5 -5 -4 -4 -3 -3 ------- Run | Yrd Mat Min Mat Min Exi Min Mat Fac Fac Fac Upp Upp War Pro Fac Res Tes Slots Evolved 14 | . . . 2 . . . 2 2 2 2 . . . . 2 2 . Power 2 | . . . . . . . . 1 . . . . . . 1 . . Propulsion 6 | . . . . . . . 1 . 1 2 . . . . 1 1 . Utility 6 | . . . 2 . . . 1 1 1 . . . . . . 1 . Weapon . | . . . . . . . . . . . . . . . . . . Parts Attached 123 | 8 10 . 20 . 1 6 20 2 2 8 6 . 7 . 16 7 10 Power 13 | 1 2 . 2 . . . 1 1 . 1 1 . . . 1 2 1 Engine 8 | 1 2 . 2 . . . 1 1 . . 1 . . . . . . Core 4 | . . . . . . . . . . 1 . . . . 1 2 . Reactor 1 | . . . . . . . . . . . . . . . . . 1 Propulsion 35 | 3 3 . 5 . . 3 6 . 1 2 . . 3 . 5 1 3 Treads 13 | . 2 . 1 . . 2 4 . 1 1 . . 2 . . . . Leg . | . . . . . . . . . . . . . . . . . . Wheel 11 | 3 1 . 4 . . 1 1 . . 1 . . . . . . . Hover . | . . . . . . . . . . . . . . . . . . Flight 11 | . . . . . . . 1 . . . . . 1 . 5 1 3 Utility 42 | 2 2 . 7 . . 1 6 1 1 4 3 . 2 . 9 2 2 Device 22 | 1 . . 4 . . 1 3 . . 3 2 . 1 . 5 1 1 Storage 5 | 1 1 . 1 . . . . . . . . . . . 2 . . Processor 4 | . . . 1 . . . 1 . . . . . 1 . . 1 . Hackware 1 | . . . . . . . . . . . . . . . 1 . . Protection 10 | . 1 . 1 . . . 2 1 1 1 1 . . . 1 . 1 Artifact . | . . . . . . . . . . . . . . . . . . Weapon 33 | 2 3 . 6 . 1 2 7 . . 1 2 . 2 . 1 2 4 Energy Gun 3 | 1 . . 1 . . . 1 . . . . . . . . . . Energy Cannon 9 | . . . . . . 1 1 . . 1 . . 1 . 1 1 3 Ballistic Gun 4 | 1 1 . 2 . . . . . . . . . . . . . . Ballistic Cannon 7 | . . . 1 . 1 1 3 . . . . . . . . . 1 Launcher 6 | . 2 . . . . . 2 . . . 1 . . . . 1 . Special Weapon 2 | . . . 1 . . . . . . . . . 1 . . . . Impact Weapon 1 | . . . 1 . . . . . . . . . . . . . . Slashing Weapon . | . . . . . . . . . . . . . . . . . . Piercing Weapon . | . . . . . . . . . . . . . . . . . . Special Melee Weapon 1 | . . . . . . . . . . . 1 . . . . . . Unidentified Prototypes 13 | . . . 1 . . . 3 . . . . . 1 . 2 1 5 Corrupted Parts 1 | . . . . . . . . . . . . . . . . 1 . System Corruption 4 | . . . . . . . . . . . . . . . . 4 . Parts Lost 43 | . . . 8 . . 1 . . . . . . 4 5 1 1 23 Power 6 | . . . 1 . . . . . . . . . 1 . 1 . 3 Propulsion 17 | . . . 2 . . 1 . . . . . . 2 3 . . 9 Utility 13 | . . . 3 . . . . . . . . . 1 1 . 1 7 Weapon 7 | . . . 2 . . . . . . . . . . 1 . . 4 Highest Loss Streak 22 | . . . 6 . . 1 . . . . . . 2 5 1 1 22 To Critical Strikes 2 | . . . . . . . . . . . . . . 2 . . . Average Backups 15 | 4 9 10 12 20 20 18 19 19 18 19 19 20 19 20 7 14 13 Power . | . 1 1 1 1 1 1 1 . . . . . . . . . . Propulsion 6 | 2 5 5 7 11 10 9 7 8 7 7 7 7 7 8 . 1 2 Utility 3 | . . 1 . 4 4 4 4 4 4 4 3 3 3 3 1 7 5 Weapon 5 | . 2 3 2 4 4 4 5 7 7 7 8 8 7 7 3 3 3 Tool/Special . | . . . . . . . . . . . . . . . . . . Unused Backups 21 | 1 1 . . . 1 2 7 . . . . 2 . . 2 . 5 Power 1 | . . . . . . . 1 . . . . . . . . . . Propulsion 5 | . 1 . . . 1 . . . . . . 1 . . 1 . 1 Utility 13 | . . . . . . 2 5 . . . . 1 . . 1 . 4 Weapon 2 | 1 . . . . . . 1 . . . . . . . . . . Tool/Special . | . . . . . . . . . . . . . . . . . . Average Slot Usage (%) 91 | . 99 100 91 100 85 97 97 99 91 93 93 94 90 68 79 91 78 Engine 7 | . 14 14 10 11 11 11 9 15 13 8 5 5 5 5 . . . Core 1 | . . . . . . . . . . 1 5 5 4 . 2 8 7 Treads 9 | . 3 . 10 . . 4 23 23 22 5 5 5 8 9 . . . Wheel 10 | . 24 28 11 22 22 15 3 . . 22 23 23 17 8 . . . Flight 7 | . . . . . . . . . . . . . . . 34 35 29 Device 18 | . 13 . 22 22 22 22 18 15 13 12 16 17 17 17 22 19 14 Storage 7 | . 14 14 11 11 11 11 9 7 6 5 5 5 5 5 1 4 3 Processor 5 | . . . . 11 11 11 9 7 6 5 5 5 4 . . 3 4 Protection 6 | . . 14 4 . . . 6 14 15 15 10 11 10 8 1 4 3 Energy Gun 2 | . 7 . 7 . . . . . . 2 . . . . 4 4 . Energy Cannon 3 | . . . . . . 1 . 7 6 7 6 9 10 7 1 3 2 Ballistic Gun 1 | . 14 14 8 . . . . . . . . . . . . . . Ballistic Cannon 5 | . . . . 11 . 20 17 7 5 . . . . . . . . Launcher 1 | . 5 14 2 9 . . . . . . 3 . . 1 . . . Peak Build Rating 117 | 7 8 8 15 13 14 21 27 31 45 70 72 71 78 65 83 95 117 Average Rating 41 | 6 7 8 12 12 11 14 21 30 34 53 67 69 71 59 68 92 90 On Entrance 36 | . 7 8 8 13 12 14 16 26 31 38 70 67 71 60 45 81 90 Avg Prop Armor Cover (%) 6 | . . . . . . . . . . 4 4 5 8 12 6 . . Naked Turns . | . . . . . . . . . . . . . . . . . . Heaviest Build 100 | 11 23 23 58 55 55 55 61 73 82 99 100 94 94 80 57 54 60 Greatest Support 84 | 26 40 20 40 20 20 40 62 62 84 84 58 58 58 38 48 61 61 Greatest Overweight (x) 5 | . 1 1 4 2 2 5 1 1 1 3 1 1 2 2 1 1 . Average Overweight (x) . | . . 1 1 2 2 2 . 1 . . 1 1 1 1 . . . Largest Inventory Capacity 20 | 8 10 10 20 20 20 20 20 20 20 20 20 20 20 20 20 15 15 Average Capacity 16 | 7 9 10 14 20 20 20 20 20 20 20 20 20 20 20 9 15 14 Most Carried 20 | 8 10 10 20 20 20 20 20 19 20 20 20 20 20 20 19 15 15 Average Carried 15 | 4 9 10 12 20 19 18 19 19 19 19 19 19 19 20 7 14 13 Final Capacity 20 | 8 10 10 20 20 20 20 20 20 20 20 20 20 20 20 15 15 5 Final Carried 20 | 8 10 10 20 20 19 20 20 19 20 20 20 20 20 20 11 15 3 Class Distribution -------------------- 48% | Scavenger-Mutant 30% | Mutant 10% | Derelict-Sprinter 5% | Derelict-Mutant 3% | Sprinter Dominant Class ---------------- Mutant | -10/Materials Mutant | -10/Mines Mutant | -9/Materials Mutant | -9/Mines Mutant | -9/Exiles Mutant | -8/Mines Scavenger-Mutant | -8/Materials Scavenger-Mutant | -7/Factory Scavenger-Mutant | -6/Factory Scavenger-Mutant | -5/Factory Scavenger-Mutant | -5/Upper Caves Scavenger-Mutant | -5/Upper Caves Scavenger-Mutant | -5/Warlord Mutant | -4/Proximity Caves Derelict-Sprinter | -4/Factory Derelict-Sprinter | -3/Research Sprinter | -3/Testing Resources | -11 -10 -10 -9 -9 -9 -8 -8 -7 -6 -5 -5 -5 -5 -4 -4 -3 -3 ----------- Run | Yrd Mat Min Mat Min Exi Min Mat Fac Fac Fac Upp Upp War Pro Fac Res Tes Matter Collected 3584 | 311 176 . 677 116 . 341 532 124 83 246 127 144 234 . 213 98 162 Remotely . | . . . . . . . . . . . . . . . . . . Salvage Created 4362 | 243 263 . 676 . . 279 318 117 299 642 214 139 603 . 325 186 58 Parts 210 | 20 17 . 29 . . 12 29 5 19 13 9 6 28 . 4 15 4 Haulers Intercepted 6 | . 1 . 1 . . . 1 . . . . . . . 3 . . Recyclers Shooed 2 | . . . 1 . . . . . . . . . . . . 1 . Parts Field Recycled . | . . . . . . . . . . . . . . . . . . Retrieved Matter . | . . . . . . . . . . . . . . . . . . Parts Self-Destructed 7 | . . . . . . . . . . . 3 4 . . . . . Prevented . | . . . . . . . . . . . . . . . . . . Parts Restored . | . . . . . . . . . . . . . . . . . . Kills | -11 -10 -10 -9 -9 -9 -8 -8 -7 -6 -5 -5 -5 -5 -4 -4 -3 -3 ------- Run | Yrd Mat Min Mat Min Exi Min Mat Fac Fac Fac Upp Upp War Pro Fac Res Tes Combat Hostiles Destroyed 96 | . 8 . 15 . . 7 14 3 6 9 9 6 15 . . 4 . Guns 11 | . 2 . 9 . . . . . . . . . . . . . . Cannons 28 | . . . . . . 7 11 3 3 3 . . 1 . . . . AOE 49 | . 6 . 6 . . . 3 . 3 1 9 5 13 . . 3 . Classes Destroyed 18 | 3 3 . 2 . . 2 1 . 1 2 . . 3 . . . 1 Worker 8 | 1 . . 4 . . . . . 2 . . . . . . 1 . Builder 1 | . . . . . . . . . 1 . . . . . . . . Tunneler 7 | 7 . . . . . . . . . . . . . . . . . Hauler 6 | . 1 . 1 . . . 1 . . . . . . . 3 . . Recycler 3 | 1 . . 1 . . 1 . . . . . . . . . . . Operator 1 | . . . . . . . 1 . . . . . . . . . . Watcher 3 | . . . . . . . . . . 1 . . . . 2 . . Swarmer 27 | . 3 . . . . . 7 . . . 5 5 3 . . 4 . Saboteur 3 | . . . . . . . . . . . . . 3 . . . . Grunt 38 | . 5 . 7 . . 4 4 3 3 4 4 . 4 . . . . Brawler 3 | . . . 2 . . . . . . . . . 1 . . . . Duelist 5 | . . . . . . 2 . . 1 . . . 2 . . . . Protector 1 | . . . . . . . . . . . . . 1 . . . . Sentry 12 | . . . 6 . . . 3 . . 2 . 1 . . . . . Specialist 1 | . . . . . . . . . . . . . 1 . . . . Hunter 5 | . . . . . . 1 . . 2 2 . . . . . . . Programmer 1 | . . . . . . . . . . 1 . . . . . . . Investigator 1 | . . . . . . . . . . . . . . . . . 1 Best Kill Streak 15 | 4 5 . 9 . . 4 4 3 6 4 5 5 15 . 2 5 1 Combat Bots Only 15 | . 4 . 6 . . 3 4 3 4 4 5 5 15 . . 4 . Max Kills in Single Turn 5 | 1 2 . 3 . . 1 2 1 4 2 5 5 4 . 1 2 1 Gunslinging . | . . . . . . . . . . . . . . . . . . Exploded 5 | . 2 . 2 . . . 2 . 3 1 5 5 4 . . 1 . Melee . | . . . . . . . . . . . . . . . . . . Uniques/NPCs Destroyed . | . . . . . . . . . . . . . . . . . . Combat | -11 -10 -10 -9 -9 -9 -8 -8 -7 -6 -5 -5 -5 -5 -4 -4 -3 -3 -------- Run | Yrd Mat Min Mat Min Exi Min Mat Fac Fac Fac Upp Upp War Pro Fac Res Tes Hostile Shots Fired 690 | . 29 . 98 . . 30 36 17 32 24 20 8 38 55 13 19 271 Missed 246 | . 7 . 30 . . 7 14 3 9 11 7 6 15 23 4 13 97 Hits 444 | . 22 . 68 . . 23 22 14 23 13 13 2 23 32 9 6 174 Melee 23 | . . . 8 . . . . . . . . . . . . . 15 Projectile 421 | . 22 . 60 . . 23 22 14 23 13 13 2 23 32 9 6 159 AOE 1 | . . . . . . . . . . . . . . . . . 1 Critical Strikes 20 | . 3 . 2 . . 1 1 . 1 . . . 1 3 . . 8 Actively Blocked 2 | . . . . . . . . . . . . . . . . . 2 Damage Taken 7602 | . 322 . 1011 . . 356 279 219 414 284 319 74 574 499 189 133 2929 Core 1802 | . 48 . 145 . . 36 42 32 20 24 14 3 97 . 21 21 1299 Absorbed by Shields 832 | . . . . . . . . . . . . . . . . . 832 Redirected to Shielding 259 | . . . . . . . . . 61 26 6 1 35 . . 26 104 Regen/Repaired (Parts) 53 | . . . . . . . . . . . . . 53 . . . . Core Remaining (%) 87 | 100 . 80 . . . 54 92 95 97 . . . . 86 98 . . Volleys Fired 317 | 31 20 . 47 . . 25 36 8 15 23 7 6 11 4 15 34 35 Largest 2 | 2 2 . 2 . . 2 2 2 2 2 1 2 2 1 2 1 1 Hottest 166 | 60 60 . 100 . . 60 60 90 120 146 60 145 145 60 166 105 105 Shots Fired 493 | 62 34 . 85 1 . 43 70 16 29 35 8 8 15 3 16 33 35 Gun 180 | 62 27 . 70 . . . . . . 10 . . . . 4 6 1 Cannon 273 | . . . 1 1 . 43 68 16 29 25 3 7 8 3 12 23 34 Launcher 35 | . 7 . 9 . . . 2 . . . 5 1 7 . . 4 . Special 5 | . . . 5 . . . . . . . . . . . . . . Kinetic 211 | 31 14 . 37 1 . 42 68 8 9 . . . . . . . 1 Thermal 220 | 31 13 . 39 . . . . 8 16 30 . 2 5 . 16 26 34 Explosive 31 | . 7 . 9 . . . 2 . . . 5 1 7 . . . . Electromagnetic 31 | . . . . . . 1 . . 4 5 3 5 3 3 . 7 . Robot Hit Streak 14 | 8 13 . 13 . . 13 9 11 14 11 5 10 4 3 3 4 2 Robot Miss Streak 4 | 4 1 . 2 . . 4 2 2 1 2 1 2 1 1 1 3 1 Penetration Max . | . . . . . . . . . . . . . . . . . . Secondary Targets 1 | . . . 1 . . . . . . . . . . . . . . Max Gunslinging Chain 1 | . . . 1 . . . . . . . . . . . . . . Shots Hit Robots 308 | 33 27 . 62 . . 27 45 12 20 30 5 5 11 2 19 7 3 Core Hits 231 | 15 18 . 43 . . 16 23 7 14 18 18 7 33 6 4 5 4 Critical Kills 1 | . . . . . . . . . . . . . . . 1 . . Critical Parts Destroyed 2 | . . . 1 . . . . . . . . . . . 1 . . Critical Strikes 7 | . . . 2 . . 1 . . 1 . . . . . 2 1 . Burn 2 | . . . 1 . . . . . . . . . . . . 1 . Meltdown 1 | . . . . . . . . . . . . . . . 1 . . Destroy 1 | . . . 1 . . . . . . . . . . . . . . Blast 2 | . . . . . . 1 . . 1 . . . . . . . . Smash 1 | . . . . . . . . . . . . . . . 1 . . Melee Attacks 40 | . . . 3 . . . 4 . . . . . . . 29 . 4 Impact 40 | . . . 3 . . . 4 . . . . . . . 29 . 4 Slashing . | . . . . . . . . . . . . . . . . . . Piercing . | . . . . . . . . . . . . . . . . . . Sneak Attacks 4 | . . . 2 . . . . . . . . . . . 2 . . Combat Hostiles . | . . . . . . . . . . . . . . . . . . Follow-up Attacks . | . . . . . . . . . . . . . . . . . . Damage Inflicted 13377 | 338 559 . 1725 . . 527 1086 276 1689 1375 1088 590 2473 150 853 530 118 Guns 1698 | 338 223 . 852 . . . . . . 145 . . . . 60 80 . Cannons 3036 | . . . 19 . . 462 874 272 433 534 6 82 130 17 36 56 115 Explosions 7735 | . 336 . 714 . . 65 210 . 1255 695 1082 508 2343 133 . 394 . Melee 896 | . . . 139 . . . . . . . . . . . 757 . . Ramming 12 | . . . 1 . . . 2 4 1 1 . . . . . . 3 Kinetic 2138 | 151 104 . 357 . . 458 874 96 98 . . . . . . . . Thermal 2474 | 187 119 . 514 . . . . 176 369 642 . 61 115 . 96 80 115 Explosive 4424 | . 336 . 714 . . . 210 . 691 . 944 362 1167 . . . . Electromagnetic 3433 | . . . . . . 69 . . 530 732 144 167 1191 150 . 450 . Impact 896 | . . . 139 . . . . . . . . . . . 757 . . Slashing . | . . . . . . . . . . . . . . . . . . Piercing . | . . . . . . . . . . . . . . . . . . Highest Corruption 15 | . . . 8 8 8 9 . . 7 9 7 12 12 15 . 4 8 Average Corruption 6 | . . . 7 8 8 8 . . 5 3 3 9 9 13 . 4 4 Corruption Purged 10 | . . . . . . . . . . 5 5 . . . . . . Corruption Blocked . | . . . . . . . . . . . . . . . . . . Effects 105 | . . . 8 9 11 14 . . 4 11 13 12 5 5 . 4 9 Message Errors 22 | . . . . 2 4 5 . . 1 2 3 5 . . . . . Matter Fused 27 | . . . 2 3 4 2 . . 2 2 4 4 2 . . . 2 Heat Flow Errors 11 | . . . 1 . . 4 . . . 3 1 1 . 1 . . . Energy Discharges 11 | . . . 1 2 1 2 . . . 1 . 1 . . . 1 2 Parts Rejected 2 | . . . . . . . . . . . 1 . . 1 . . . Data Loss (minor) 13 | . . . 1 . . 1 . . . 3 3 . 1 . . 1 3 Data Loss (major) 8 | . . . 2 1 1 . . . . . . 1 . 2 . 1 . Misfires 4 | . . . . 1 . . . . 1 . 1 . . . . . 1 Alerts 1 | . . . . . 1 . . . . . . . . . . . . Misdirections 1 | . . . . . . . . . . . . . 1 . . . . Weapon Failures 5 | . . . 1 . . . . . . . . . 1 1 . 1 1 Overload Shots . | . . . . . . . . . . . . . . . . . . Overflow Damage 534 | . . . 53 . . . 15 . 242 7 51 . 60 . 106 . . Projectiles . | . . . . . . . . . . . . . . . . . . Explosions 375 | . . . . . . . 15 . 242 7 51 . 60 . . . . Melee 159 | . . . 53 . . . . . . . . . . . 106 . . Knockbacks 17 | . . . . . . 5 8 2 2 . . . . . . . . Impact 1 | . . . . . . . 1 . . . . . . . . . . Kinetic 16 | . . . . . . 5 7 2 2 . . . . . . . . Secondary . | . . . . . . . . . . . . . . . . . . Self-Inflicted Damage 140 | . 30 . . . . . . . . . 71 25 . 13 . . 1 Shots 6 | . 2 . . . . . . . . . 1 2 . 1 . . . Rammed 6 | . . . 1 . . . 1 1 1 1 . . . . . . 1 Targets Rammed 6 | . . . 1 . . . 1 1 1 1 . . . . . . 1 Kicked . | . . . . . . . . . . . . . . . . . . Crushed . | . . . . . . . . . . . . . . . . . . Highest Temperature 333 | 40 156 . 126 . . 252 . 2 22 240 . . . 36 70 243 333 Average Temperature 75 | 21 63 . 63 . . 113 . 2 12 84 . . . 36 27 77 143 Received Heat Transfer 1620 | . 186 . 300 . . 99 90 126 . 54 84 9 69 27 75 9 492 Siege Activations . | . . . . . . . . . . . . . . . . . . Martial Activations . | . . . . . . . . . . . . . . . . . . Shielding Activations . | . . . . . . . . . . . . . . . . . . Robots Disrupted . | . . . . . . . . . . . . . . . . . . Combat Hostiles . | . . . . . . . . . . . . . . . . . . Robots Corrupted 9 | . . . . . . . . . . 4 . 1 1 . 3 . . Combat Hostiles 6 | . . . . . . . . . . 4 . 1 1 . . . . Parts Fried 22 | . . . 1 . . . . . 1 12 . 1 3 . 2 2 . Impact Corruptions 6 | . . . 2 . . . . . . . . . . . 4 . . Robots Melted 3 | . . . . . . . . . . 1 . . . . 1 1 . Combat Hostiles 2 | . . . . . . . . . . 1 . . . . . 1 . Parts Melted 8 | . . . 3 . . . . 1 . 3 . . . . 1 . . Heat Transferred 4339 | 425 275 . 1184 . . . . 259 568 925 . 74 129 . 148 222 130 Parts Sabotaged 1 | . . . . . . . . . . . . . . . . . 1 Parts Stolen . | . . . . . . . . . . . . . . . . . . Parts Stripped . | . . . . . . . . . . . . . . . . . . Power Chain Reactions . | . . . . . . . . . . . . . . . . . . Latent Energy Used 2105 | . . . . . . 56 . . 313 761 111 247 492 125 . . . LE Corruption 41 | . . . . . . 1 . . 7 12 4 6 8 3 . . . Alert | -11 -10 -10 -9 -9 -9 -8 -8 -7 -6 -5 -5 -5 -5 -4 -4 -3 -3 ------- Run | Yrd Mat Min Mat Min Exi Min Mat Fac Fac Fac Upp Upp War Pro Fac Res Tes Maximum Alert Level 5 | . . . 1 . . . . . 1 1 . . . . . . 5 Low Security (%) 85 | 100 100 100 94 100 . 100 100 100 65 11 . . . . 100 100 . Level 1 9 | . . . 5 . . . . . 34 88 . . . . . . . Level 2 . | . . . . . . . . . . . . . . . . . . Level 3 . | . . . . . . . . . . . . . . . . . . Level 4 . | . . . . . . . . . . . . . . . . . . Level 5 . | . . . . . . . . . . . . . . . . . . High Security . | . . . . . . . . . . . . . . . . . . Max Security 5 | . . . . . . . . . . . . . . . . . 99 Peak Influence 1938 | 15 138 35 222 66 . 65 105 60 263 310 . . . . 159 102 1938 Initial 159 | . . 35 9 66 . . 13 32 . 119 . . . . 159 . 10 Average 139 | 2 56 32 52 23 . 24 35 12 87 224 . . . . 43 32 1719 Influence Increases 4300 | 45 268 . 536 . . 188 434 70 323 413 230 175 661 45 390 144 378 Destroy 0b10 Robot/C 2120 | . 160 . 300 . . 140 280 60 120 180 180 120 480 . . 80 20 Destroy 0b10 Robot/NC 160 | 45 5 . 30 . . 5 10 . 20 5 . . 10 . 25 5 . Destroy Leader 358 | . 32 . 102 . . 30 62 10 20 52 20 10 . . 10 10 . Allied During Kill 176 | . . . . . . . . . 5 . . . 171 . . . . Successful Hack 52 | . . . . . . 13 17 . . 4 . . . . 15 3 . Disable Machine 255 | . 15 . 30 . . . 15 . 90 . . . . . 15 15 75 Destroy Structure 309 | . 26 . 29 . . . 20 . 68 82 . . . . 40 16 28 Advance Influence 150 | . . . . . . . . . . . . . . . 150 . . Partial Spotted 105 | . . . . . . . 15 . . 15 . . . . 45 15 15 Lose Combat Pursuer 615 | . 30 . 45 . . . 15 . . 75 30 45 . 45 90 . 240 Influence Decreases 4142 | 45 176 67 391 170 . 153 398 141 80 362 324 244 253 569 405 125 239 Entered New Map 1195 | . . 57 16 104 . . 22 39 . 124 110 38 131 539 6 . 9 Time Decay 2506 | 45 176 10 314 66 . 153 376 102 60 238 214 206 32 10 389 115 . Lost Part 361 | . . . 61 . . . . . . . . . 30 20 10 10 230 Lost Ally 80 | . . . . . . . . . 20 . . . 60 . . . . Squads Dispatched 28 | . 1 . 2 . . . 2 2 3 3 . . . . 2 1 12 Investigation 4 | . . . 1 . . . . 1 . 1 . . . . . 1 . Extermination 4 | . . . . . . . . . 1 1 . . . . 2 . . Reinforcement 8 | . 1 . 1 . . . 2 1 2 1 . . . . . . . Assault 12 | . . . . . . . . . . . . . . . . . 12 Garrison . | . . . . . . . . . . . . . . . . . . Intercept . | . . . . . . . . . . . . . . . . . . Searches Triggered . | . . . . . . . . . . . . . . . . . . Construction Impeded 2 | . . . . . . . . . 1 1 . . . . . . . Haulers Reinforced . | . . . . . . . . . . . . . . . . . . Active Scanning Responses . | . . . . . . . . . . . . . . . . . . Cargo Convoy Interrupts . | . . . . . . . . . . . . . . . . . . Stealth | -11 -10 -10 -9 -9 -9 -8 -8 -7 -6 -5 -5 -5 -5 -4 -4 -3 -3 --------- Run | Yrd Mat Min Mat Min Exi Min Mat Fac Fac Fac Upp Upp War Pro Fac Res Tes Distress Signals 10 | . . . 3 . . . 3 . . 1 . . . 1 . 1 1 Communications Jammed . | . . . . . . . . . . . . . . . . . . Distress Signals . | . . . . . . . . . . . . . . . . . . Times Spotted 230 | . 11 . 20 . . 7 22 6 6 13 11 4 37 8 11 14 60 Peak Tracking Total 35 | . 3 . 6 . . 3 4 4 4 4 5 3 15 7 4 5 35 Tactical Retreats 16 | . 1 . 2 . . . 1 . . 1 1 1 . 2 3 . 4 Traps | -11 -10 -10 -9 -9 -9 -8 -8 -7 -6 -5 -5 -5 -5 -4 -4 -3 -3 ------- Run | Yrd Mat Min Mat Min Exi Min Mat Fac Fac Fac Upp Upp War Pro Fac Res Tes Traps Triggered 7 | . . . . . . . 1 . . . . . 1 . 2 2 1 Indirectly 1 | . . . . . . . . . . . . . . . . 1 . Trap Hack Attempts . | . . . . . . . . . . . . . . . . . . Triggered . | . . . . . . . . . . . . . . . . . . Disarmed . | . . . . . . . . . . . . . . . . . . Reprogrammed . | . . . . . . . . . . . . . . . . . . Reused . | . . . . . . . . . . . . . . . . . . Traps Extracted . | . . . . . . . . . . . . . . . . . . Installed . | . . . . . . . . . . . . . . . . . . Triggered . | . . . . . . . . . . . . . . . . . . Machines | -11 -10 -10 -9 -9 -9 -8 -8 -7 -6 -5 -5 -5 -5 -4 -4 -3 -3 ---------- Run | Yrd Mat Min Mat Min Exi Min Mat Fac Fac Fac Upp Upp War Pro Fac Res Tes Machines Disabled 22 | . 1 . 2 . . . 1 . 6 . . . 3 . 1 1 7 Max in Single Turn 3 | . 1 . 1 . . . 1 . 3 . . . 2 . 1 1 1 Machines Repaired . | . . . . . . . . . . . . . . . . . . Machines Dismantled 1 | . . . . . . . . . . . . . 1 . . . . Machines Sabotaged . | . . . . . . . . . . . . . . . . . . Overloaded Fab Kills . | . . . . . . . . . . . . . . . . . . Hacking | -11 -10 -10 -9 -9 -9 -8 -8 -7 -6 -5 -5 -5 -5 -4 -4 -3 -3 --------- Run | Yrd Mat Min Mat Min Exi Min Mat Fac Fac Fac Upp Upp War Pro Fac Res Tes Machines Accessed 27 | . 1 . 5 . 2 1 7 1 . 3 1 . . . 3 3 . Terminals 18 | . 1 . 3 . . 1 6 1 . 3 . . . . 2 1 . Fabricators . | . . . . . . . . . . . . . . . . . . Repair Stations 1 | . . . . . . . 1 . . . . . . . . . . Recycling Units . | . . . . . . . . . . . . . . . . . . Scanalyzers 5 | . . . 2 . . . . . . . . . . . 1 2 . Garrison Access . | . . . . . . . . . . . . . . . . . . Total Hacks 61 | . 1 . 11 . 7 3 16 2 . 8 1 . . . 6 6 . Successful 33 | . . . 6 . 7 2 9 . . 3 1 . . . 2 3 . Failed 26 | . 1 . 4 . . 1 6 2 . 5 . . . . 4 3 . Catastrophic 2 | . 1 . . . . . 1 . . . . . . . . . . Database Lockouts 2 | . . . 1 . . . 1 . . . . . . . . . . Manual 37 | . 1 . 8 . 1 4 11 2 . 4 . . . . 4 2 . Terminals 40 | . 1 . 6 . . 3 14 2 . 8 . . . . 4 2 . Fabricators . | . . . . . . . . . . . . . . . . . . Repair Stations 2 | . . . . . . . 2 . . . . . . . . . . Recycling Units . | . . . . . . . . . . . . . . . . . . Scanalyzers 11 | . . . 5 . . . . . . . . . . . 2 4 . Garrison Access . | . . . . . . . . . . . . . . . . . . Terminal Hacks 18 | . . . 1 . 7 2 5 . . 1 1 . . . . 1 . Record 6 | . . . . . 6 . . . . . . . . . . . . Robot Analysis 4 | . . . . . . 2 2 . . . . . . . . . . Prototype ID Bank 1 | . . . . . . . 1 . . . . . . . . . . Open Door 1 | . . . . . . . . . . . 1 . . . . . . Branch Access Points 1 | . . . 1 . . . . . . . . . . . . . . Locate Traps 2 | . . . . . . . 1 . . 1 . . . . . . . Security Status 1 | . . . . . . . 1 . . . . . . . . . . Hauler Manifests 1 | . . . . . . . . . . . . . . . . 1 . Proto ID Catalog 1 | . . . . . 1 . . . . . . . . . . . . Fabricator Hacks . | . . . . . . . . . . . . . . . . . . Repair Station Hacks . | . . . . . . . . . . . . . . . . . . Recycling Unit Hacks . | . . . . . . . . . . . . . . . . . . Scanalyzer 5 | . . . 4 . . . . . . . . . . . . 1 . Retrieve Study 5 | . . . 4 . . . . . . . . . . . . 1 . Garrison Access Hacks . | . . . . . . . . . . . . . . . . . . Unauthorized Hacks 10 | . . . 1 . . . 4 . . 2 . . . . 2 1 . Terminals 10 | . . . 1 . . . 4 . . 2 . . . . 2 1 . Botnet 10 | . . . 1 . . . 4 . . 2 . . . . 2 1 . Fabricators . | . . . . . . . . . . . . . . . . . . Repair Stations . | . . . . . . . . . . . . . . . . . . Recycling Units . | . . . . . . . . . . . . . . . . . . Scanalyzers . | . . . . . . . . . . . . . . . . . . Garrison Access . | . . . . . . . . . . . . . . . . . . Data Cores Recovered 1 | . . . . . . . 1 . . . . . . . . . . Used 1 | . . . . . . . 1 . . . . . . . . . . Hacking Detections 19 | . 1 . 3 . . 1 5 1 . 3 . . . . 3 2 . Full Trace Events 3 | . . . 1 . . . . 1 . 1 . . . . . . . Feedback Events . | . . . . . . . . . . . . . . . . . . Feedback Blocked . | . . . . . . . . . . . . . . . . . . Robot Schematics Acquired . | . . . . . . . . . . . . . . . . . . Robots Built . | . . . . . . . . . . . . . . . . . . Authchips . | . . . . . . . . . . . . . . . . . . Time . | . . . . . . . . . . . . . . . . . . Total Robot Build Rating . | . . . . . . . . . . . . . . . . . . Part Schematics Acquired . | . . . . . . . . . . . . . . . . . . Parts Built . | . . . . . . . . . . . . . . . . . . Authchips . | . . . . . . . . . . . . . . . . . . Time . | . . . . . . . . . . . . . . . . . . Total Part Build Rating . | . . . . . . . . . . . . . . . . . . Part Studies Acquired 5 | . . . 4 . . . . . . . . . . . . 1 . Parts Repaired . | . . . . . . . . . . . . . . . . . . Time . | . . . . . . . . . . . . . . . . . . Parts Recycled . | . . . . . . . . . . . . . . . . . . Recycled Matter . | . . . . . . . . . . . . . . . . . . Retrieved Matter . | . . . . . . . . . . . . . . . . . . Retrieved Components . | . . . . . . . . . . . . . . . . . . Parts Scanalyzed . | . . . . . . . . . . . . . . . . . . Part Schematics Acquired . | . . . . . . . . . . . . . . . . . . Parts Damaged . | . . . . . . . . . . . . . . . . . . Bothacking | -11 -10 -10 -9 -9 -9 -8 -8 -7 -6 -5 -5 -5 -5 -4 -4 -3 -3 ------------ Run | Yrd Mat Min Mat Min Exi Min Mat Fac Fac Fac Upp Upp War Pro Fac Res Tes Used RIF Installer . | . . . . . . . . . . . . . . . . . . Robots Hacked . | . . . . . . . . . . . . . . . . . . Non-combat . | . . . . . . . . . . . . . . . . . . Combat . | . . . . . . . . . . . . . . . . . . Robot Hacks Applied . | . . . . . . . . . . . . . . . . . . Relay Couplers Released . | . . . . . . . . . . . . . . . . . . Fabnet Peak Effective % . | . . . . . . . . . . . . . . . . . . Robots Rewired 6 | . . . . . . . . . 1 . . . 5 . . . . Allies Hacked 5 | . . . . . . . . . . . . . 5 . . . . Hacks Repelled . | . . . . . . . . . . . . . . . . . . Allies | -11 -10 -10 -9 -9 -9 -8 -8 -7 -6 -5 -5 -5 -5 -4 -4 -3 -3 -------- Run | Yrd Mat Min Mat Min Exi Min Mat Fac Fac Fac Upp Upp War Pro Fac Res Tes Total Allies 7 | . . . . 1 . . . . 1 . . . 5 . . . . Largest Group 5 | . . . . 1 1 . . . 1 . . . 5 . . . . Highest-Rated Group 275 | . . . . 31 31 . . . 12 . . . 275 . . . . Highest-Rated Ally 68 | . . . . 31 31 . . . 12 . . . 68 . . . . Total Orders . | . . . . . . . . . . . . . . . . . . Ally Attacks 39 | . . . . . . . . . 9 . . . 30 . . . . Total Damage 1592 | . . . . . . . . . 69 . . . 1523 . . . . Kills 11 | . . . . . . . . . . . . . 11 . . . . Allies Corrupted 2 | . . . . . . . . . . . . . 2 . . . . Allies Melted . | . . . . . . . . . . . . . . . . . . Intel | -11 -10 -10 -9 -9 -9 -8 -8 -7 -6 -5 -5 -5 -5 -4 -4 -3 -3 ------- Run | Yrd Mat Min Mat Min Exi Min Mat Fac Fac Fac Upp Upp War Pro Fac Res Tes Active Infowar (turns) 792 | 105 420 . 241 . . . . . . . . . . . 26 . . Sensors 24 | . . . . . . . . . . . . . . . 24 . . Traps 2 | . . . . . . . . . . . . . . . 2 . . Seismic 766 | 105 420 . 241 . . . . . . . . . . . . . . Robot Analysis Total 4 | . . . . . . 2 2 . . . . . . . . . . Derelict Logs Recovered 3 | . . . . 1 . . . . . . 1 . . 1 . . . Drone Launches . | . . . . . . . . . . . . . . . . . . Drone Recoveries . | . . . . . . . . . . . . . . . . . . Exploration | -11 -10 -10 -9 -9 -9 -8 -8 -7 -6 -5 -5 -5 -5 -4 -4 -3 -3 ------------- Run | Yrd Mat Min Mat Min Exi Min Mat Fac Fac Fac Upp Upp War Pro Fac Res Tes Turns Passed 8462 | 246 425 27 863 210 374 396 1384 498 328 509 451 420 535 74 1041 341 340 Spaces Moved 7507 | 162 340 29 437 202 367 196 790 177 125 399 453 400 462 49 1855 395 669 Core 42 | 2 . . . . . . . . . . . . . . . . 40 Treads 1032 | . 9 . 82 . . 19 601 177 125 13 . . . 6 . . . Legs . | . . . . . . . . . . . . . . . . . . Wheels 3554 | 160 331 29 355 202 367 177 189 . . 386 453 400 462 43 . . . Hover . | . . . . . . . . . . . . . . . . . . Flight 2879 | . . . . . . . . . . . . . . . 1855 395 629 Fastest Speed 22 | 50 80 95 85 100 100 100 85 208 152 92 92 92 92 100 27 23 22 Average Speed 80 | 85 88 95 108 100 100 117 139 208 188 95 92 92 95 125 37 26 24 Slowest Speed 280 | 100 160 95 200 100 100 200 160 208 208 280 92 92 115 240 112 105 50 Overloaded Moves . | . . . . . . . . . . . . . . . . . . Propulsion Burnouts . | . . . . . . . . . . . . . . . . . . Robots Hopped 21 | . . . . . . . . . . . . . . . 8 2 11 Potential Cave-ins 4 | . . . . . . . . . . . . . . . . 4 . Cave-ins Triggered . | . . . . . . . . . . . . . . . . . . Exploration Rate (%) 31 | 7 42 12 35 39 61 23 43 5 4 9 59 52 68 7 27 12 62 Regions Visited 17 Branch Regions 9 Pre-discovered Areas 2 | . . . . . 1 . . . . . . . . 1 . . . Known Exits Taken 1 | . . . 1 . . . . . . . . . . . . . . Unknown Exits Taken 16 | 1 1 1 . 1 1 1 1 1 1 1 1 1 1 1 1 1 . Scrap Searched 4 | . . . . 1 . . . . . . 1 2 . . . . . Spaces Dug 56 | . . . 4 . . . 10 . . . . . . . 19 9 14 Terrain Destroyed 398 | . 25 . 28 . . . 18 . 82 60 41 17 63 . 20 18 26 Melee 16 | . . . . . . . 4 . . . . . . . 10 . 2 Projectile 58 | . . . 5 . . . . . . 1 . . . . 10 18 24 AOE 324 | . 25 . 23 . . . 14 . 82 59 41 17 63 . . . . Terrain Rammed . | . . . . . . . . . . . . . . . . . . Walls Destroyed . | . . . . . . . . . . . . . . . . . . Machines Disabled . | . . . . . . . . . . . . . . . . . . Actions | -11 -10 -10 -9 -9 -9 -8 -8 -7 -6 -5 -5 -5 -5 -4 -4 -3 -3 --------- Run | Yrd Mat Min Mat Min Exi Min Mat Fac Fac Fac Upp Upp War Pro Fac Res Tes Total 9272 | 211 431 28 712 209 375 317 995 290 188 493 478 444 528 58 2127 592 796 Wait 959 | . 41 . 149 7 . 78 92 103 38 44 4 30 . 4 190 152 27 Move 7448 | 161 339 28 436 201 366 195 789 176 124 398 452 399 461 48 1838 390 647 Hop 21 | . . . . . . . . . . . . . . . 8 2 11 Pick Up 85 | 9 6 . 16 . 2 4 12 . 2 3 2 3 5 . 10 3 8 Fast Attach 41 | 7 . . 9 . . . 1 1 . 1 3 . 2 1 4 5 7 Attach 43 | . 1 . 6 . 2 2 2 1 2 1 1 . . . 14 . 11 Detach 16 | . 1 . 4 . . 1 . . . . . . . . 6 2 2 Swap 142 | 1 16 . 32 1 . 8 35 . 2 13 5 3 12 1 4 3 6 Drop 93 | 2 7 . 9 . 3 4 23 . . 9 4 3 6 . 6 1 16 Fire 317 | 31 20 . 47 . . 25 36 8 15 23 7 6 11 4 15 34 35 Melee 40 | . . . 3 . . . 4 . . . . . . . 29 . 4 Ram 1 | . . . . . . . . . . . . . . . . . 1 Kick . | . . . . . . . . . . . . . . . . . . Crush 5 | . . . 1 . . . 1 1 1 1 . . . . . . . Escape Stasis 24 | . . . . . . . . . . . . . . . 3 . 21 Rewire 29 | . . . . . 2 . . . 4 . . . 23 . . . . Trap . | . . . . . . . . . . . . . . . . . . Miscellaneous 8 | . . . . . . . . . . . . . 8 . . . . Route ------- -11/Scrapyard -10/Materials (discovered 4 exits: *Mat / [*Min x2] / [*Sub]) -10/Mines -9/Materials (discovered 3 exits: *Min x2 / Sto) -9/Mines -9/Exiles -8/Mines -8/Materials -7/Factory -6/Factory -5/Factory (discovered 2 exits: *Upp / [*Ext]) -5/Upper Caves -5/Upper Caves (discovered 2 exits: *Fac / *War) -5/Warlord -4/Proximity Caves -4/Factory (discovered 2 exits: *Res x2) -3/Research -3/Testing History --------- Turn | Location | Event 22 | -11/Scrapyard | Discovered new exit (range 14) 247 | -11/Scrapyard | Entered Materials 247 | -10/Materials | Discovered new exit (range 7) 284 | -10/Materials | Discovered new exit (range 8) 305 | -10/Materials | Build established: Mutant 490 | -10/Materials | Discovered new exit (range 3) 646 | -10/Materials | Discovered new exit (range 11) 672 | -10/Materials | Entered Mines 690 | -10/Mines | Discovered new exit (range 9) 699 | -10/Mines | Entered Materials 699 | -9/Materials | Evolved 2 slots: Utility x2 1282 | -9/Materials | Identified exit to Mines 1282 | -9/Materials | Identified exit to Storage 1414 | -9/Materials | Lost 6 parts (1p2n1u2w) 1535 | -9/Materials | Central database locked down 1562 | -9/Materials | Entered Mines 1602 | -9/Mines | Met a Derelict bent on vengeance 1638 | -9/Mines | Received a Mining Laser from a helpful Derelict 1671 | -9/Mines | Learned Materials terminal intel 1702 | -9/Mines | Found a hidden stash of uninstalled traps 1756 | -9/Mines | Deemed a non-threat by the Exiles lab entrance 1757 | -9/Mines | Discovered new exit (range 5) 1772 | -9/Mines | Entered Exiles 1772 | -9/Exiles | Accompanied by 1 ally 1799 | -9/Exiles | Met 8R-AWN 1815 | -9/Exiles | Met EX-HEX 1863 | -9/Exiles | Met EX-BIN 1875 | -9/Exiles | Aligned with FarCom system 1876 | -9/Exiles | Given EX-Vault access code 1909 | -9/Exiles | Opened EX-Vault 1918 | -9/Exiles | Found Latent Energy Streamer 1939 | -9/Exiles | Warned to stay clear of 0b10 Research branches 2093 | -9/Exiles | Met EX-DEC 2101 | -9/Exiles | Learned location of Zion (-7) 2130 | -9/Exiles | Discovered new exit (range 14) 2146 | -9/Exiles | Left Exiles lab with Latent Energy Streamer 2146 | -9/Exiles | Entered Mines 2496 | -8/Mines | Discovered new exit (range 11) 2517 | -8/Mines | Found a Scrap Suit stashed away for nefarious purposes 2537 | -8/Mines | Found Scrap Suit 2542 | -8/Mines | Entered Materials 2542 | -8/Materials | Evolved 2 slots: Propulsion x1, Utility x1 2543 | -8/Materials | Loaded intel: 12 terminal locations 3123 | -8/Materials | Build established: Scavenger-Mutant 3363 | -8/Materials | Central database locked down 3912 | -8/Materials | Discovered new exit (range 10) 3926 | -8/Materials | Entered Factory 3926 | -7/Factory | Evolved 2 slots: Power x1, Utility x1 4410 | -7/Factory | Discovered new exit (range 7) 4424 | -7/Factory | Entered another Factory area 4424 | -6/Factory | Evolved 2 slots: Propulsion x1, Utility x1 4745 | -6/Factory | Discovered new exit (range 5) 4752 | -6/Factory | Entered another Factory area 4752 | -5/Factory | Evolved 2 slots: Propulsion x2 5091 | -5/Factory | Discovered new exit (range 13) 5117 | -5/Factory | Discovered new exit (range 15) 5261 | -5/Factory | Entered Upper Caves 5298 | -5/Upper Caves | Learned Factory terminal intel 5627 | -5/Upper Caves | Discovered new exit (range 8) 5694 | -5/Upper Caves | Attracted the attention of an 0b10 checkpoint 5712 | -5/Upper Caves | Entered another Upper Caves area 5712 | -5/Upper Caves | Discovered new exit (range 13) 5796 | -5/Upper Caves | Attracted the attention of an 0b10 checkpoint 6026 | -5/Upper Caves | System corruption reached 10% 6120 | -5/Upper Caves | Discovered new exit (range 12) 6132 | -5/Upper Caves | Entered Warlord 6170 | -5/Warlord | System corruption cleaned by Quarantine Array 6424 | -5/Warlord | Met Warlord 6449 | -5/Warlord | Warlord's base attacked by MAIN.C 6499 | -5/Warlord | Found Prototype Device 6499 | -5/Warlord | Identified Minesniffer Drone Bay 6591 | -5/Warlord | P-80 Master assimilated allied Beamer 6b 6601 | -5/Warlord | P-70 Sage assimilated allied Sentinel 6a 6650 | -5/Warlord | Destroyed 15 combat bots 6655 | -5/Warlord | Discovered new exit (range 12) 6667 | -5/Warlord | Entered Proximity Caves 6692 | -4/Proximity Caves | Lost 3 allies 6708 | -4/Proximity Caves | Spotter reported a threat 6722 | -4/Proximity Caves | Discovered new exit (range 11) 6723 | -4/Proximity Caves | Attracted the attention of an 0b10 checkpoint 6737 | -4/Proximity Caves | Learned location of Armory (-4) 6741 | -4/Proximity Caves | Entered Factory 6741 | -4/Factory | Evolved 2 slots: Power x1, Propulsion x1 6742 | -4/Factory | Loaded intel: 26 terminal locations 6760 | -4/Factory | Lost 5 parts (3n1u1w) 6883 | -4/Factory | Found Prototype Device 6883 | -4/Factory | Identified Adv. EM Shield 7039 | -4/Factory | Build established: Derelict-Mutant 7511 | -4/Factory | Build established: Derelict-Sprinter 7638 | -4/Factory | Discovered new exit (range 13) 7649 | -4/Factory | Discovered new exit (range 15) 7782 | -4/Factory | Entered Research 7782 | -3/Research | Evolved 2 slots: Propulsion x1, Utility x1 7927 | -3/Research | Spotted B-86 Titan 8112 | -3/Research | Discovered new exit (range 7) 8123 | -3/Research | Entered Testing 8124 | -3/Testing | Maximum security lockdown engaged 8147 | -3/Testing | Found Prototype Energy Cannon 8147 | -3/Testing | Identified Disintegrator 8215 | -3/Testing | Found Prototype Energy Cannon 8252 | -3/Testing | Identified Hpw. Disruptor Cannon 8367 | -3/Testing | Spotted Investigator 8381 | -3/Testing | Scanned by Researcher 8397 | -3/Testing | Destroyed Investigator 8415 | -3/Testing | Spotted Striker 8443 | -3/Testing | Core integrity fell below 50% 8452 | -3/Testing | Core integrity fell below 20% 8463 | -3/Testing | Destroyed by Striker with Plasma Lance Last Messages --------------- 08440_ P-80 Master resets G-67 Veteran, system corruption cleaned. 08440_ Imp. Flight Unit destroyed. 08441_ Imp. Plasma Cutter destroyed. 08441_ Penetrated by Slug. 08442_ P-80 Master resets S-43 Plague, system corruption cleaned. 08442_ Latent Energy Streamer destroyed. 08442_ Slammed into B-74 Champion. 08443_ Penetrated by Slug. 08443_ Slug penetrates Wall. 08443_ Mic. Fission Core destroyed. 08444_ Adv. Weight Redist. System destroyed. 08444_ Penetrated by Slug. 08444_ Critical hit (Burn: +37). 08445_ Penetrated by Slug. 08445_ Slug penetrates G-73 Enforcer. 08449_ Slug penetrates Phase Constrictor. 08452_ Acquired 117 matter. 08456_ Slug penetrates Earth. 08457_ Acquired 23 matter. [Achievement: Tester] Map ----- +----------------------------------------------------+ | ####+#########??????????????????????????????????? | | # ???????????????????????????????????? | | + ????????????????????????????????????? | | # ??????????????????????????????????????? | | # ????????????????????????????????????????? | | # ####+#######???????????????????????????????? | | # ## #???????????????????????????????? | | + ## """"""" #???????????????????????????????? | | #### ## """"""" #???????????????????????????????? | | #??# ## """"""" #???????????????????????????????? | | #??# ## #???????????????????????????????? | | ##??# ## #???????????????????????????????? | | ##### ## # ????????????????????? | | "" " ????????????????????? | | ###########+#########???????????????????????????? | | #???????? ??????????????????????????????????? | | #?????? ????????????????????????????????? | | +#####""" """ """ ??????????????????????????????? | | !#G """ """ ????????????????????????????? | | #""" """ """ ##???????????????????????????? | | ! !#" """ """ #????????????????????????????? | | #### """ """ ###############??????????????? | | ######??# """ """ #??????????????? | | ????????# #??????????????? | | ????????# ! #??????????????? | | ???????C ! @K #??????????????? | | ??????????#" F"#?############# #??????????????? | | ???????????""""#????????# #??# #??????????????? | | ????????#####"###########"#### #??????????????? | | ????????# """" "%s s +??????????????? | | ????????# """""" "s"Y #??????????????? | | ????????# ""F "" p "s #??????????????? | | ????????# """ " " p "g #??????????????? | | ????????# " #####g#########??????????????? | | ????????# #?###"######?????????????????? | | #####???# ### Y #?????????????????? | | #???# """" l#"" """ #?????????????????? | | """ #???# """ w #""|! """ #?????????????????? | | """ #???# """ h #"T]%Y""" #?????????????????? | | """ #???# h #""*! """ #?????????????????? | | """ #???# "" #"" Y""" #?????????????????? | | """ #???# """ ig### g #?????????????????? | | ! #???# "" #?# ] #?????????????????? | | ]#???# #?# #?????????????????? | | ######### """" = #######/########?????????????? | | """"" #?????????????? | | """"" ####??????????? | | " =!] #??????????? | | !![ #??????????? | | ###########+###############/###%! #??????????? | +----------------------------------------------------+ Best States ------------- Heat Dissipation 119 Energy Generation 31 Energy Capacity 505 Matter Stores 300 Matter Capacity 300 Sight Range 16 Robot Scan Range 16 Terrain Scan Density 10 Power Amplification 30 Additional Mass Support 9 Base Temperature (-) 150 Armor Coverage 450 Core Shielding 30 Propulsion Shielding 66 Weapon Shielding 66 Evasion (%) 65 Targeting Accuracy 8 Recoil Reduction 4 Offensive Hacking 11 Authchip Count 1 Item Schematics ----------------- None Robot Schematics ------------------ None Fabricated ------------ Nothing Repaired ---------- Nothing Studied --------- Wheel | -9/Materials | Hacked Ion Engine | -9/Materials | Hacked Lgt. Treads | -9/Materials | Hacked Imp. Treads | -9/Materials | Hacked Matter Neutralizer | -3/Research | Hacked Alien Tech Used ----------------- None Achievements -------------- Blue Mage Tester Challenges ------------ None Game ------ Seed SalvageMiningExoskeleton Manual? 0 Play Time 01:45:53 Cumulative 119.1 hours Start 2026.01.14 @ 11:41:34 End 2026.01.16 @ 17:28:10 Sessions 9 Manual Loads 0 Difficulty Rogue Special Mode None Game No. 124 Rogue 124 Adventurer 0 Explorer 0 Win Type - Total 0 Types 0/0/0/0/0/0/0/0/0/0 Lore% 64 Gallery% 50 Achievement% 41 Wizard Run 0 Options --------- Layout 0 ASCII 0 Keyboard 1 Movement Vi Keybinds 0 Fullscreen 2 Font 18/SmallcapsGlow Map View 76x50 Zoom Use 0% Tactical HUD 1 Map Filters NONE Filters NONE Steam 1 RUN: 5cda59d2-d903-49ef-b440-c3b951d2f084